bitfinex/quotes_SOLUSD_20241208
["timestamp","ask_amount","ask_price","bid_price","bid_amount"]
[1733699218998,12.87759677,236.65,236.58,12.87759677]
[1733699219297,12.87759677,236.64,236.57,12.87759677]
[1733699219496,12.87759677,236.63,236.56,12.87759677]
[1733699219795,12.87759677,236.59,236.52,12.87759677]
[1733699220104,12.87759677,236.59,236.53,23.776884]
[1733699221974,12.87759677,236.6,236.53,23.776884]
[1733699222375,12.87759677,236.6,236.53,12.87759677]
[1733699223206,12.87759677,236.61,236.53,12.87759677]
[1733699224704,12.87759677,236.61,236.51,23.776884]
[1733699224705,12.87759677,236.57,236.51,23.776884]
[1733699226480,12.87759677,236.58,236.51,36.65448077]
[1733699229206,12.87759677,236.59,236.52,12.87759677]
[1733699229918,0.12549,236.59,236.52,12.87759677]
[1733699230410,20.0,236.58,236.55,12.87759677]
[1733699231107,20.0,236.59,236.55,12.87759677]
[1733699232424,12.87759677,236.62,236.55,12.87759677]
[1733699234303,12.87759677,236.62,236.54,12.87759677]
[1733699234709,12.87759677,236.61,236.53,12.87759677]
[1733699234914,12.87759677,236.61,236.54,23.776884]
[1733699235231,8.23895143,236.61,236.53,8.23895143]
[1733699235526,8.23895143,236.61,236.54,23.776884]
[1733699236401,8.23895143,236.62,236.54,32.01583543]
[1733699237019,8.23895143,236.62,236.55,8.23895143]
[1733699238501,20.0,236.67,236.56,8.23895143]
[1733699238733,20.0,236.67,236.57,8.23895143]
[1733699238930,20.0,236.67,236.56,23.776884]
[1733699239222,8.23895143,236.64,236.57,23.776884]
[1733699239432,8.23895143,236.64,236.57,32.01583543]
[1733699239601,20.0,236.67,236.59,8.23895143]
[1733699239801,10.67355432,236.71,236.6,8.23895143]
[1733699240020,8.23895143,236.68,236.6,8.23895143]
[1733699240528,8.23895143,236.69,236.63,23.776884]
[1733699240731,8.23895143,236.71,236.63,32.01583543]
[1733699241032,8.23895143,236.71,236.59,1.5017]
[1733699241033,8.23895143,236.71,236.65,23.776884]
[1733699241628,8.23895143,236.73,236.66,8.23895143]
[1733699242231,20.0,236.7,236.66,8.23895143]
[1733699242544,20.0,236.7,236.65,32.01583543]
[1733699242906,5.0,236.68,236.58,0.12549]
[1733699243129,5.0,236.68,236.63,8.23895143]
[1733699243433,17.8627932,236.66,236.59,12.8627932]
[1733699243830,5.0,236.65,236.59,12.8627932]
[1733699244006,5.0,236.63,236.58,12.8627932]
[1733699244707,5.0,236.63,236.59,12.8627932]
[1733699245015,5.0,236.63,236.6,12.8627932]
[1733699245214,5.0,236.64,236.6,12.8627932]
[1733699245519,5.0,236.65,236.61,12.8627932]
[1733699245927,5.0,236.66,236.59,12.8627932]
[1733699246221,5.0,236.65,236.59,12.8627932]
[1733699246433,5.0,236.65,236.6,12.8627932]
[1733699246628,5.0,236.68,236.62,12.8627932]
[1733699247124,5.0,236.68,236.63,12.8627932]
[1733699247319,5.0,236.68,236.64,12.8627932]
[1733699247525,5.0,236.68,236.63,12.8627932]
[1733699247702,5.0,236.68,236.62,12.8627932]
[1733699253229,10.0,236.7,236.63,12.8627932]
[1733699253430,5.0,236.7,236.66,12.8627932]
[1733699253636,10.0,236.7,236.66,12.8627932]
[1733699253851,5.0,236.7,236.66,12.8627932]
[1733699254756,12.8627932,236.73,236.61,0.63369613]
[1733699254757,5.0,236.74,236.69,12.8627932]
[1733699254920,5.0,236.76,236.71,12.8627932]
[1733699255122,5.0,236.78,236.72,12.8627932]
[1733699255319,5.0,236.78,236.73,12.8627932]
[1733699255751,5.0,236.78,236.74,12.8627932]
[1733699255923,17.8627932,236.8,236.73,12.8627932]
[1733699256119,5.0,236.8,236.75,12.8627932]
[1733699257132,5.0,236.82,236.76,12.8627932]
[1733699257328,17.8627932,236.84,236.77,12.8627932]
[1733699258151,5.0,236.84,236.78,12.8627932]
[1733699258521,5.0,236.84,236.79,12.8627932]
[1733699259062,5.0,236.84,236.8,12.8627932]
[1733699259230,5.0,236.86,236.78,12.8627932]
[1733699259433,12.8627932,236.84,236.77,12.8627932]
[1733699259644,5.0,236.84,236.75,23.776884]
[1733699259962,12.8627932,236.82,236.76,12.8627932]
[1733699260260,12.8627932,236.81,236.74,14.5904832]
[1733699261367,12.8627932,236.79,236.74,1.6022]
[1733699261544,12.8627932,236.78,236.71,12.8627932]
[1733699261737,12.8627932,236.77,236.7,12.8627932]
[1733699262953,12.8627932,236.78,236.71,12.8627932]
[1733699263151,12.8627932,236.81,236.74,12.8627932]
[1733699263461,22.8627932,236.82,236.75,12.8627932]
[1733699263655,12.8627932,236.83,236.77,12.8627932]
[1733699263959,17.8627932,236.83,236.76,12.8627932]
[1733699264535,12.8627932,236.82,236.75,12.8627932]
[1733699265047,12.8627932,236.81,236.74,12.8627932]
[1733699266167,5.0,236.83,236.76,12.8627932]
[1733699266342,12.8627932,236.82,236.76,12.8627932]
[1733699266744,12.8627932,236.83,236.76,12.8627932]
[1733699266954,5.0,236.86,236.77,12.8627932]
[1733699267253,12.8627932,236.84,236.77,12.8627932]
[1733699268068,12.8627932,236.84,236.78,12.8627932]
[1733699268442,12.8627932,236.84,236.77,12.8627932]
[1733699269132,8.22129724,236.84,236.77,8.22129724]
[1733699269935,5.0,236.86,236.78,8.22129724]
[1733699270139,8.22129724,236.85,236.78,8.22129724]
[1733699270455,8.22129724,236.84,236.77,8.22129724]
[1733699273351,8.22129724,236.85,236.78,8.22129724]
[1733699274861,8.22129724,236.89,236.82,8.22129724]
[1733699275939,13.22129724,236.9,236.83,8.22129724]
[1733699276148,6.4262,236.91,236.79,20.63327732]
[1733699276149,6.4262,236.91,236.82,8.22129724]
[1733699276357,8.22129724,236.9,236.83,8.22129724]
[1733699276671,5.0,236.9,236.84,8.22129724]
[1733699276842,8.22129724,236.9,236.83,8.22129724]
[1733699277042,14.64749724,236.91,236.84,8.22129724]
[1733699277265,16.4262,236.91,236.85,8.22129724]
[1733699277578,10.0,236.91,236.85,8.22129724]
[1733699278346,10.0,236.91,236.86,8.22129724]
[1733699278574,10.0,236.91,236.89,8.22129724]
[1733699278939,10.0,236.91,236.9,31.99818124]
[1733699280154,10.0,236.91,236.86,2.17607349]
[1733699280352,10.0,236.91,236.87,20.0]
[1733699280655,10.0,236.91,236.89,20.0]
[1733699281047,10.0,236.91,236.87,8.22129724]
[1733699282646,10.0,236.91,236.84,20.63307]
[1733699282647,10.0,236.91,236.86,8.22129724]
[1733699282970,10.0,236.91,236.87,23.776884]
[1733699284450,10.0,236.91,236.86,8.22129724]
[1733699284451,8.22129724,236.89,236.77,10.5584]
[1733699284652,8.22129724,236.89,236.82,8.22129724]
[1733699284987,13.22129724,236.9,236.83,8.22129724]
[1733699285672,8.22129724,236.89,236.82,8.22129724]
[1733699285874,8.22129724,236.89,236.82,20.0]
[1733699286188,8.22129724,236.88,236.81,8.22129724]
[1733699288048,8.22129724,236.87,236.7,6.0321]
[1733699288250,13.22129724,236.86,236.78,8.22129724]
[1733699288451,8.22129724,236.85,236.78,8.22129724]
[1733699288957,5.0,236.86,236.79,8.22129724]
[1733699289157,5.0,236.88,236.82,8.22129724]
[1733699289377,5.0,236.9,236.83,8.22129724]
[1733699289554,15.0,236.91,236.84,8.22129724]
[1733699290789,10.0,236.91,236.84,8.22129724]
[1733699291151,10.0,236.91,236.78,0.75873063]
[1733699291152,10.0,236.91,236.85,31.99818124]
[1733699291374,10.0,236.91,236.86,8.22129724]
[1733699291778,10.0,236.91,236.85,31.99818124]
[1733699292517,10.0,236.91,236.88,8.22129724]
[1733699292712,10.0,236.91,236.87,8.22129724]
[1733699293075,10.0,236.91,236.86,8.22129724]
[1733699293280,12.83606795,236.9,236.85,23.776884]
[1733699293478,12.83606795,236.88,236.81,36.61295195]
[1733699294996,12.83606795,236.87,236.81,23.776884]
[1733699295305,17.83606795,236.85,236.78,12.83606795]
[1733699298699,17.83606795,236.85,236.77,12.83606795]
[1733699298889,22.83606795,236.85,236.77,12.83606795]
[1733699299310,12.83606795,236.84,236.77,12.83606795]
[1733699302410,5.0,236.85,236.79,12.83606795]
[1733699302610,12.83606795,236.86,236.79,12.83606795]
[1733699302912,5.0,236.85,236.79,12.83606795]
[1733699303116,5.0,236.85,236.78,36.61295195]
[1733699303309,17.83606795,236.85,236.78,36.61295195]
[1733699304209,12.83606795,236.85,236.78,36.61295195]
[1733699304413,12.83606795,236.86,236.79,12.83606795]
[1733699305315,5.0,236.83,236.76,23.776884]
[1733699305500,12.83606795,236.82,236.76,23.776884]
[1733699305688,17.83606795,236.83,236.76,12.83606795]
[1733699306090,12.83606795,236.82,236.76,23.776884]
[1733699306311,5.0,236.83,236.76,36.61295195]
[1733699306312,17.83606795,236.83,236.76,36.61295195]
[1733699307483,17.83606795,236.83,236.75,36.61295195]
[1733699307484,12.83606795,236.82,236.75,36.61295195]
[1733699308317,12.83606795,236.81,236.75,23.776884]
[1733699309424,12.83606795,236.82,236.75,23.776884]
[1733699310503,12.83606795,236.82,236.69,2.19011107]
[1733699310504,17.83606795,236.79,236.72,12.83606795]
[1733699313189,13.22459339,236.79,236.72,8.22459339]
[1733699313518,8.22459339,236.8,236.73,8.22459339]
[1733699313692,10.0,236.81,236.7,23.902374]
[1733699313693,10.0,236.81,236.75,8.22459339]
[1733699314026,8.22459339,236.8,236.73,28.22459339]
[1733699314213,8.22459339,236.8,236.74,23.776884]
[1733699314800,13.22459339,236.81,236.74,32.00147739]
[1733699315027,5.0,236.81,236.74,32.00147739]
[1733699316495,8.22459339,236.78,236.72,23.776884]
[1733699316823,8.22459339,236.77,236.72,23.776884]
[1733699316998,8.22459339,236.77,236.7,32.00147739]
[1733699318304,8.22459339,236.75,236.71,20.0]
[1733699319110,8.22459339,236.76,236.71,20.0]
[1733699319306,8.22459339,236.72,236.65,8.22459339]
[1733699320526,8.22459339,236.72,236.66,23.776884]
[1733699323634,5.0,236.74,236.68,8.22459339]
[1733699323814,13.22459339,236.74,236.67,8.22459339]
[1733699325841,13.22459339,236.74,236.66,32.00147739]
[1733699326419,8.22459339,236.73,236.66,32.00147739]
[1733699328628,8.22459339,236.7,236.66,20.0]
[1733699329045,8.22459339,236.69,236.66,20.0]
[1733699329442,8.22459339,236.69,236.63,23.776884]
[1733699329833,8.22459339,236.68,236.64,20.0]
[1733699330040,8.22459339,236.68,236.62,23.776884]
[1733699330939,13.22459339,236.69,236.62,32.00147739]
[1733699332335,11.6319,236.71,236.65,8.22459339]
[1733699332647,19.85649339,236.71,236.64,8.22459339]
[1733699332847,19.85649339,236.71,236.65,23.776884]
[1733699333236,5.0,236.69,236.62,23.776884]
[1733699333447,13.22459339,236.67,236.6,23.776884]
[1733699333657,8.22459339,236.66,236.6,23.776884]
[1733699333963,13.22459339,236.67,236.6,23.776884]
[1733699334167,5.0,236.67,236.6,32.00147739]
[1733699334768,5.0,236.68,236.62,8.22459339]
[1733699335965,1.6319,236.71,236.65,32.00147739]
[1733699336164,13.22459339,236.73,236.66,8.22459339]
[1733699336535,5.0,236.72,236.64,0.12549]
[1733699336741,5.0,236.72,236.65,8.22459339]
[1733699336948,13.22459339,236.72,236.66,23.776884]
[1733699337662,8.22459339,236.7,236.66,23.776884]
[1733699337869,8.22459339,236.71,236.64,32.12696739]
[1733699340171,5.0,236.72,236.66,23.776884]
[1733699340350,13.22459339,236.72,236.66,23.776884]
[1733699340550,8.22459339,236.71,236.66,23.776884]
[1733699340961,13.22459339,236.72,236.65,23.776884]
[1733699342767,13.22459339,236.72,236.65,32.00147739]
[1733699344877,5.0,236.72,236.67,23.776884]
[1733699348079,13.22459339,236.72,236.67,23.776884]
[1733699348376,13.22459339,236.72,236.66,23.776884]
[1733699350568,5.0,236.72,236.66,32.00147739]
[1733699351554,5.0,236.74,236.68,32.00147739]
[1733699353478,6.4596,236.75,236.68,32.00147739]
[1733699354860,14.68419339,236.75,236.68,32.00147739]
[1733699355463,8.22459339,236.74,236.68,23.776884]
[1733699355685,8.22459339,236.72,236.66,23.776884]
[1733699356059,13.22459339,236.73,236.66,32.00147739]
[1733699356491,13.22459339,236.74,236.67,8.22459339]
[1733699356865,5.0,236.74,236.69,23.776884]
[1733699357286,13.22459339,236.74,236.69,23.776884]
[1733699357591,8.22459339,236.73,236.68,23.776884]
[1733699357965,8.22459339,236.73,236.67,23.776884]
[1733699358396,8.22459339,236.7,236.67,23.776884]
[1733699358693,8.22459339,236.68,236.67,23.776884]
[1733699358857,8.22459339,236.69,236.67,23.776884]
[1733699359878,8.22459339,236.69,236.65,20.0]
[1733699360188,8.22459339,236.7,236.66,23.776884]
[1733699360397,8.22459339,236.69,236.63,23.902374]
[1733699362093,8.22459339,236.69,236.63,23.776884]
[1733699364692,13.22459339,236.69,236.63,23.776884]
[1733699365791,13.22459339,236.71,236.64,8.22459339]
[1733699365959,5.0,236.69,236.64,20.0]
[1733699366163,8.22459339,236.69,236.64,20.0]
[1733699366584,8.22459339,236.69,236.65,20.0]
[1733699368675,8.22459339,236.68,236.64,20.0]
[1733699369503,6.4596,236.75,236.68,23.776884]
[1733699369707,6.4596,236.75,236.7,23.776884]
[1733699369871,8.22459339,236.74,236.7,23.776884]
[1733699370070,14.68419339,236.75,236.68,8.22459339]
[1733699370294,14.68419339,236.75,236.69,23.776884]
[1733699370478,6.5106,236.76,236.7,8.35008339]
[1733699370681,8.22459339,236.76,236.71,23.776884]
[1733699371000,13.22459339,236.76,236.71,23.776884]
[1733699371190,13.22459339,236.76,236.69,24.027864]
[1733699371973,8.22459339,236.76,236.69,24.027864]
[1733699373176,8.22459339,236.73,236.69,23.902374]
[1733699373378,8.22459339,236.74,236.7,20.0]
[1733699373606,8.22459339,236.74,236.71,23.776884]
[1733699374782,8.22459339,236.75,236.71,23.776884]
[1733699374985,13.22459339,236.74,236.7,20.0]
[1733699375190,13.22459339,236.74,236.65,10.5639]
[1733699375191,8.22459339,236.71,236.67,23.776884]
[1733699375411,8.22459339,236.71,236.66,23.776884]
[1733699375724,8.22459339,236.7,236.63,8.22459339]
[1733699375887,8.22459339,236.7,236.64,0.12549]
[1733699376387,8.22459339,236.7,236.63,8.22459339]
[1733699376588,8.22459339,236.69,236.62,8.22459339]
[1733699376816,8.22459339,236.7,236.62,8.22459339]
[1733699377115,8.22459339,236.7,236.65,20.0]
[1733699378024,8.22459339,236.7,236.66,23.776884]
[1733699378807,8.22459339,236.68,236.6,20.0]
[1733699378989,8.22459339,236.66,236.64,20.0]
[1733699379817,8.22459339,236.66,236.56,7.79514758]
[1733699379991,8.22459339,236.66,236.53,6.4937]
[1733699379992,8.22459339,236.64,236.53,10.5692]
[1733699380321,8.22459339,236.64,236.56,8.22459339]
[1733699380626,13.22459339,236.64,236.56,8.22459339]
[1733699381502,13.22459339,236.64,236.57,23.776884]
[1733699382199,8.22459339,236.62,236.56,23.776884]
[1733699382415,5.0,236.61,236.55,8.22459339]
[1733699383801,5.0,236.61,236.56,23.776884]
[1733699386102,5.0,236.59,236.52,20.0]
[1733699386305,5.0,236.59,236.53,8.22459339]
[1733699386628,10.0,236.59,236.53,8.22459339]
[1733699387428,10.0,236.59,236.54,23.776884]
[1733699388711,5.0,236.57,236.53,23.776884]
[1733699388901,5.0,236.57,236.52,8.22459339]
[1733699389125,10.0,236.57,236.52,8.22459339]
[1733699390131,5.0,236.57,236.52,8.22459339]
[1733699390302,10.0,236.57,236.52,8.22459339]
[1733699391110,5.0,236.57,236.52,8.22459339]
[1733699395409,5.0,236.57,236.53,8.22459339]
[1733699396029,5.0,236.57,236.49,24.53641677]
[1733699396233,5.0,236.57,236.52,8.22459339]
[1733699396414,5.0,236.55,236.49,23.776884]
[1733699396616,5.0,236.55,236.5,8.22459339]
[1733699396824,5.0,236.55,236.49,32.00147739]
[1733699397020,5.0,236.54,236.49,23.776884]
[1733699397228,5.0,236.52,236.47,8.22459339]
[1733699397436,5.0,236.52,236.43,0.4885453]
[1733699397437,13.22459339,236.52,236.43,0.4885453]
[1733699397710,5.0,236.52,236.46,8.22459339]
[1733699398922,13.22459339,236.52,236.46,23.776884]
[1733699399511,5.0,236.5,236.44,23.776884]
[1733699400019,5.0,236.5,236.43,0.4885453]
[1733699400020,5.0,236.49,236.43,0.4885453]
[1733699400225,5.0,236.49,236.44,23.776884]
[1733699400741,5.0,236.48,236.43,0.4885453]
[1733699400907,5.0,236.48,236.43,24.2654293]
[1733699402526,5.0,236.46,236.43,0.4885453]
[1733699403046,5.0,236.49,236.44,8.22459339]
[1733699403228,5.0,236.49,236.46,8.22459339]
[1733699404350,10.0,236.52,236.47,8.22459339]
[1733699404541,5.0,236.52,236.49,8.22459339]
[1733699404742,10.0,236.52,236.48,8.22459339]
[1733699404965,5.0,236.52,236.47,8.22459339]
[1733699406361,10.0,236.54,236.48,8.22459339]
[1733699406664,10.0,236.54,236.49,8.22459339]
[1733699406837,5.0,236.54,236.49,8.22459339]
[1733699407033,6.2261,236.55,236.49,8.22459339]
[1733699408132,5.0,236.54,236.49,8.22459339]
[1733699408337,5.0,236.52,236.48,8.22459339]
[1733699408948,5.0,236.51,236.45,23.776884]
[1733699409273,13.22459339,236.51,236.45,23.776884]
[1733699409440,5.0,236.51,236.45,32.00147739]
[1733699409960,5.0,236.51,236.43,8.71313869]
[1733699409961,5.0,236.49,236.43,8.71313869]
[1733699410333,5.0,236.49,236.44,23.776884]
[1733699413243,5.0,236.49,236.44,32.00147739]
[1733699418362,5.0,236.5,236.46,8.22459339]
[1733699418562,5.0,236.53,236.48,8.22459339]
[1733699418761,5.0,236.52,236.48,8.22459339]
[1733699420363,5.0,236.53,236.48,8.22459339]
[1733699420560,11.2261,236.55,236.51,8.22459339]
[1733699420777,6.5777,236.57,236.52,8.22459339]
[1733699421163,1.5777,236.57,236.52,8.22459339]
[1733699421376,10.0,236.6,236.54,8.22459339]
[1733699421947,10.0,236.6,236.47,0.63400832]
[1733699421948,10.0,236.6,236.55,8.22459339]
[1733699422352,5.0,236.6,236.57,8.22459339]
[1733699423377,1.6531,236.62,236.58,8.22459339]
[1733699423542,11.1396,236.66,236.61,8.22459339]
[1733699423748,5.0,236.64,236.61,8.22459339]
[1733699423976,10.0,236.64,236.6,8.22459339]
[1733699424384,5.0,236.64,236.6,8.22459339]
[1733699425155,11.1396,236.66,236.56,0.63386083]
[1733699425156,6.1396,236.66,236.62,8.22459339]
[1733699425368,11.1396,236.66,236.62,8.22459339]
[1733699425582,16.1396,236.66,236.61,8.22459339]
[1733699426053,16.1396,236.66,236.6,8.22459339]
[1733699426248,1.6129,236.67,236.62,8.22459339]
[1733699426454,10.0,236.68,236.63,8.22459339]
[1733699426680,5.0,236.68,236.63,8.22459339]
[1733699427384,5.0,236.68,236.58,0.63378709]
[1733699427385,5.0,236.68,236.64,8.22459339]
[1733699427552,5.0,236.68,236.65,23.776884]
[1733699427746,5.0,236.7,236.65,23.776884]
[1733699428352,5.0,236.68,236.65,23.776884]
[1733699428774,5.0,236.68,236.64,23.776884]
[1733699431877,5.0,236.68,236.64,32.00147739]
[1733699432090,5.0,236.65,236.56,20.0]
[1733699432251,5.0,236.65,236.6,20.0]
[1733699432588,13.22459339,236.64,236.57,8.22459339]
[1733699433073,5.0,236.64,236.54,0.25098]
[1733699433277,5.0,236.64,236.59,8.22459339]
[1733699433883,5.0,236.65,236.59,8.22459339]
[1733699435374,5.0,236.67,236.62,32.00147739]
[1733699435696,5.0,236.69,236.64,23.776884]
[1733699436791,5.0,236.69,236.65,8.22459339]
[1733699437286,5.0,236.71,236.65,8.22459339]
[1733699439176,10.0,236.69,236.64,32.00147739]
[1733699439489,10.0,236.69,236.64,23.776884]
[1733699439994,18.22459339,236.69,236.63,23.776884]
[1733699440297,5.0,236.67,236.63,23.776884]
[1733699440454,18.22459339,236.67,236.6,8.22459339]
[1733699440658,18.22459339,236.67,236.63,20.0]
[1733699440871,5.0,236.65,236.61,23.776884]
[1733699441071,5.0,236.65,236.6,23.776884]
[1733699442402,5.0,236.65,236.6,32.00147739]
[1733699443598,5.0,236.65,236.61,8.22459339]
[1733699447735,10.0,236.65,236.58,8.22459339]
[1733699447927,5.0,236.61,236.56,20.0]
[1733699448204,5.0,236.58,236.53,8.22459339]
[1733699448379,5.0,236.58,236.54,8.22459339]
[1733699450094,5.0,236.6,236.49,11.20492591]
[1733699450294,5.0,236.62,236.58,8.22459339]
[1733699450496,5.0,236.62,236.59,8.22459339]
[1733699453137,5.0,236.64,236.59,8.22459339]
[1733699453298,5.0,236.62,236.59,8.22459339]
[1733699454619,5.0,236.62,236.58,8.22459339]
[1733699454933,5.0,236.62,236.59,23.776884]
[1733699455299,5.0,236.62,236.57,8.22459339]
[1733699455300,5.0,236.61,236.57,8.22459339]
[1733699455513,5.0,236.59,236.48,10.5714]
[1733699455715,5.0,236.59,236.55,8.22459339]
[1733699455921,5.0,236.59,236.49,0.63400935]
[1733699455922,5.0,236.59,236.56,8.22459339]
[1733699456618,5.0,236.6,236.56,8.22459339]
[1733699456923,5.0,236.63,236.59,8.22459339]
[1733699457125,5.0,236.64,236.59,8.22459339]
[1733699457323,5.0,236.64,236.6,8.22459339]
[1733699457823,5.0,236.65,236.61,32.00147739]
[1733699458131,5.0,236.63,236.57,23.776884]
[1733699458295,10.0,236.65,236.59,28.22459339]
[1733699458495,10.0,236.65,236.6,8.22459339]
[1733699458689,5.0,236.65,236.61,8.22459339]
[1733699458891,10.0,236.67,236.62,8.22459339]
[1733699459123,10.0,236.67,236.63,32.00147739]
[1733699462400,5.0,236.7,236.66,8.22459339]
[1733699462600,10.0,236.71,236.67,8.22459339]
[1733699462805,10.0,236.71,236.67,23.776884]
[1733699463423,5.0,236.71,236.67,23.776884]
[1733699463605,10.0,236.71,236.67,23.776884]
[1733699463806,10.0,236.71,236.68,8.22459339]
[1733699464027,5.0,236.71,236.69,23.776884]
[1733699464841,7.9134,236.74,236.71,23.776884]
[1733699464842,16.3992,236.74,236.71,23.776884]
[1733699465039,10.0,236.74,236.71,32.00147739]
[1733699465347,10.0,236.74,236.71,23.776884]
[1733699466558,10.0,236.74,236.66,20.0]
[1733699466559,5.0,236.72,236.68,8.22459339]
[1733699466730,10.0,236.7,236.65,23.776884]
[1733699466916,5.0,236.68,236.65,23.776884]
[1733699469651,5.0,236.68,236.64,32.00147739]
[1733699470153,5.0,236.67,236.64,23.776884]
[1733699470350,5.0,236.67,236.62,23.776884]
[1733699470737,5.0,236.63,236.58,8.22459339]
[1733699471124,5.0,236.63,236.59,8.22459339]
[1733699471737,5.0,236.65,236.61,8.22459339]
[1733699471959,5.0,236.65,236.62,8.22459339]
[1733699472244,5.0,236.68,236.65,23.776884]
[1733699472426,5.0,236.68,236.65,32.00147739]
[1733699472626,5.0,236.68,236.65,23.776884]
[1733699472848,5.0,236.68,236.65,32.00147739]
[1733699473749,5.0,236.68,236.66,8.22459339]
[1733699473922,5.0,236.7,236.67,8.22459339]
[1733699474338,5.0,236.7,236.68,23.776884]
[1733699474534,5.0,236.74,236.69,8.22459339]
[1733699474852,5.0,236.76,236.72,23.776884]
[1733699475052,5.0,236.74,236.72,23.776884]
[1733699475350,5.0,236.74,236.71,23.776884]
[1733699475563,5.0,236.74,236.7,23.776884]
[1733699476142,5.0,236.74,236.68,8.22459339]
[1733699476348,5.0,236.69,236.66,23.776884]
[1733699476920,5.0,236.69,236.66,32.00147739]
[1733699477119,5.0,236.69,236.66,36.6342723]
[1733699479223,5.0,236.69,236.66,23.776884]
[1733699479628,5.0,236.69,236.66,36.6342723]
[1733699479828,5.0,236.69,236.68,23.776884]
[1733699480222,5.0,236.71,236.68,36.6342723]
[1733699480447,5.0,236.71,236.7,23.776884]
[1733699481052,5.0,236.73,236.7,36.6342723]
[1733699481261,5.0,236.73,236.71,12.8573883]
[1733699481460,5.0,236.73,236.7,23.776884]
[1733699481660,17.8573883,236.73,236.7,23.776884]
[1733699481830,5.0,236.69,236.65,23.776884]
[1733699482157,5.0,236.69,236.65,36.6342723]
[1733699484044,5.0,236.67,236.64,23.776884]
[1733699485266,5.0,236.67,236.64,36.6342723]
[1733699488261,10.0,236.67,236.62,23.776884]
[1733699488438,5.0,236.65,236.62,23.776884]
[1733699488636,5.0,236.65,236.61,23.776884]
[1733699489960,5.0,236.63,236.61,23.776884]
[1733699491060,5.0,236.63,236.53,2.22273695]
[1733699491061,10.0,236.63,236.59,23.776884]
[1733699491248,5.0,236.61,236.57,12.8573883]
[1733699491858,5.0,236.61,236.58,12.8573883]
[1733699492067,5.0,236.61,236.59,12.8573883]
[1733699492361,10.0,236.63,236.6,23.776884]
[1733699492565,10.0,236.63,236.6,36.6342723]
[1733699493150,10.0,236.63,236.6,23.776884]
[1733699493348,10.0,236.63,236.59,23.776884]
[1733699495061,10.0,236.63,236.59,36.6342723]
[1733699495263,10.0,236.63,236.6,12.8573883]
[1733699495434,5.0,236.63,236.61,12.8573883]
[1733699496554,5.0,236.63,236.62,12.8573883]
[1733699497071,5.0,236.66,236.63,23.776884]
[1733699497245,5.0,236.66,236.64,12.8573883]
[1733699497571,5.0,236.66,236.65,23.776884]
[1733699498959,5.0,236.68,236.65,36.6342723]
[1733699499158,5.0,236.68,236.66,8.22898288]
[1733699499542,10.0,236.72,236.67,32.00586688]
[1733699499751,5.0,236.7,236.69,8.22898288]
[1733699499972,5.0,236.7,236.69,32.00586688]
[1733699500739,5.0,236.72,236.7,23.776884]
[1733699501064,5.0,236.72,236.7,32.00586688]
[1733699501270,5.0,236.72,236.7,23.776884]
[1733699502634,5.0,236.68,236.64,20.0]
[1733699502866,5.0,236.68,236.63,8.22898288]
[1733699502867,5.0,236.66,236.63,8.22898288]
[1733699504441,5.0,236.66,236.64,23.776884]
[1733699505154,5.0,236.63,236.57,1.5047]
[1733699505341,5.0,236.63,236.6,8.22898288]
[1733699506366,5.0,236.63,236.57,1.5047]
[1733699506367,5.0,236.61,236.57,8.22898288]
[1733699506541,5.0,236.59,236.57,8.22898288]
[1733699507235,5.0,236.59,236.58,8.22898288]
[1733699507463,5.0,236.59,236.58,32.00586688]
[1733699507776,5.0,236.61,236.59,23.776884]
[1733699508073,5.0,236.61,236.6,32.00586688]
[1733699508844,5.0,236.63,236.61,23.776884]
[1733699509053,5.0,236.63,236.62,8.22898288]
[1733699509258,5.0,236.63,236.62,23.776884]
[1733699513087,5.0,236.61,236.6,23.776884]